Cogmind - Beta 10 @@@ ROGUE MODE // 2020.09.18 @ 16:05:36 Player: kerapace Result: Self-destructed Performance ------------- Evolutions (2) 1000 Regions Visited (5) 1000 Robots Destroyed (50) 250 Value Destroyed (942) 942 Prototype IDs (32) 640 Alien Tech Used (0) 0 Bonus (276) 276 TOTAL SCORE: 4108 Bonus ------- Aligned with FarCom 300 Friendly Fire -24 Cogmind --------- Core Integrity 463/550 Matter 27/300 Energy 310/310 System Corruption 2% Temperature Cool (9) Movement Treading (260) Ox5 Location -8/Materials Parts ------- > --- POWER (1) -------- Reinforced Fission Core > --- PROPULSION (3) --- Improved Treads Wheel > --- UTILITY (5) ------ High-capacity Storage Unit High-capacity Storage Unit High-capacity Storage Unit > --- WEAPON (2) ------- Rocket Launcher > --- INVENTORY (28) --- Advanced Myomer Leg Advanced Myomer Leg Experimental Heat Sink Large Storage Unit Large Storage Unit Large Storage Unit High-capacity Storage Unit Gravity Neutralizing Apparatus Gravity Neutralizing Apparatus Advanced Sensor Array Modified TNC Advanced Weapon Cycler Propulsion Shielding 8R-AWN's Armor/EX Thief Drone Bay (2/3) AS-neutralizer No. 17b Medium Laser Advanced Beam Cannon Advanced Beam Cannon Ion Cannon Firepult Assault Rifle Light Assault Rifle 8R-AWN's Boregun 8R-AWN's Boregun Grenade Launcher Peak State ------------ > --- POWER ------------ Reinforced Fission Core > --- PROPULSION ------- Advanced Myomer Leg Wheel > --- UTILITY ---------- 8R-AWN's Armor/EX > --- WEAPON ----------- 8R-AWN's Boregun 8R-AWN's Boregun > --- INVENTORY -------- Experimental Heat Sink High-capacity Storage Unit Advanced Weapon Cycler Light Assault Rifle [Rating: 56] Favorites ----------- Power Ion Engine Engine Ion Engine Power Core Reinforced Fission Core Propulsion Wheel Treads Light Treads Leg Advanced Myomer Leg Wheel Wheel Utility High-capacity Storage Unit Device Experimental Heat Sink Storage High-capacity Storage Unit Protection Medium Armor Plating Weapon Assault Rifle Energy Gun Particle Gun Energy Cannon Advanced Beam Cannon Ballistic Gun Assault Rifle Launcher Rocket Launcher Build | -11 -10 -10 -10 -9 -8 ------- Run | Scr Mat Min Exi Min Mat Slots Evolved 4 | . . . . . 4 Power . | . . . . . . Propulsion 1 | . . . . . 1 Utility 3 | . . . . . 3 Weapon . | . . . . . . Parts Attached 53 | 6 5 6 17 9 10 Power 5 | 1 . 1 1 . 2 Engine 3 | 1 . 1 . . 1 Core 2 | . . . 1 . 1 Reactor . | . . . . . . Propulsion 9 | 2 . 2 3 1 1 Treads 3 | 1 . 1 . 1 . Leg 1 | . . . 1 . . Wheel 5 | 1 . 1 2 . 1 Hover . | . . . . . . Flight . | . . . . . . Utility 20 | 1 3 2 8 2 4 Device 10 | . 1 1 5 1 2 Storage 8 | 1 2 1 2 1 1 Processor . | . . . . . . Hackware . | . . . . . . Protection 2 | . . . 1 . 1 Artifact . | . . . . . . Weapon 19 | 2 2 1 5 6 3 Energy Gun 3 | . . 1 . 2 . Energy Cannon 3 | . . . . 1 2 Ballistic Gun 9 | 2 1 . 4 2 . Ballistic Cannon . | . . . . . . Launcher 4 | . 1 . 1 1 1 Special Weapon . | . . . . . . Impact Weapon . | . . . . . . Slashing Weapon . | . . . . . . Piercing Weapon . | . . . . . . Special Melee Weapon . | . . . . . . Unidentified Prototypes 9 | . . 1 6 . 2 Parts Lost 12 | . . 3 3 1 5 Power 2 | . . 1 1 . . Propulsion 4 | . . 1 1 1 1 Utility 2 | . . . . . 2 Weapon 4 | . . 1 1 . 2 Highest Loss Streak 4 | . . 2 3 1 4 Average Slot Usage (%) 96 | . 95 99 97 94 87 Engine 10 | . 14 14 10 . . Core 3 | . . . 3 14 8 Treads 12 | . 14 13 10 10 9 Wheel 13 | . 14 14 14 14 10 Device 2 | . 2 . 3 . 7 Storage 25 | . 20 27 23 27 25 Energy Gun 5 | . . 2 10 13 7 Ballistic Gun 18 | . 26 25 15 9 . Launcher 1 | . 1 . 2 3 7 Naked Turns . | . . . . . . Heaviest Build 133 | 13 74 74 97 107 133 Greatest Support 30 | 20 20 20 30 23 23 Greatest Overweight (x) 13 | . 7 7 9 10 13 Average Overweight (x) 5 | . 1 5 4 8 10 Largest Inventory Capacity 28 | 6 20 20 20 20 28 Average Capacity 18 | 4 12 19 17 19 27 Most Carried 28 | 3 11 17 20 20 28 Average Carried 14 | 2 6 14 15 19 22 Final Capacity 28 | 6 20 20 20 20 28 Final Carried 28 | 3 11 16 19 20 28 Class Distribution -------------------- 83% | Hauler-Mutant 16% | Mutant Dominant Class ---------------- Hauler-Mutant | -10/Materials Hauler-Mutant | -10/Mines Hauler-Mutant | -10/Exiles Hauler-Mutant | -9/Mines Hauler-Mutant | -8/Materials Resources | -11 -10 -10 -10 -9 -8 ----------- Run | Scr Mat Min Exi Min Mat Matter Collected 1154 | 190 268 280 152 205 59 Remotely . | . . . . . . Salvage Created 1305 | . 315 360 145 250 235 Parts 74 | . 28 19 1 12 14 Haulers Intercepted 1 | . 1 . . . . Recyclers Shooed 1 | . 1 . . . . Parts Field Recycled . | . . . . . . Retrieved Matter . | . . . . . . Parts Self-Destructed . | . . . . . . Prevented . | . . . . . . Kills | -11 -10 -10 -10 -9 -8 ------- Run | Scr Mat Min Exi Min Mat Combat Hostiles Destroyed 37 | . 10 5 6 7 9 Guns 14 | . 7 5 2 . . Cannons 5 | . . . . . 5 AOE 18 | . 3 . 4 7 4 Classes Destroyed 10 | . 5 2 1 1 1 Worker 3 | . . . . 2 1 Tunneler 5 | . . 2 . 3 . Hauler 1 | . 1 . . . . Recycler 2 | . . 2 . . . Operator 1 | . 1 . . . . Watcher 1 | . 1 . . . . Swarmer 13 | . 6 3 . . 4 Grunt 17 | . 4 2 . 7 4 Sentry 1 | . . . . . 1 Assembled 5 | . . . 5 . . Best Kill Streak 9 | . 4 3 5 8 9 Combat Bots Only 9 | . 3 3 5 4 9 Max Kills in Single Turn 4 | . 2 1 2 4 2 Gunslinging . | . . . . . . Exploded 2 | . 2 . 2 2 2 Melee . | . . . . . . Uniques/NPCs Destroyed 1 | . . . 1 . . 8R-AWN (-10/Exiles) Combat | -11 -10 -10 -10 -9 -8 -------- Run | Scr Mat Min Exi Min Mat Damage Taken 1768 | . 391 299 320 125 633 Core 241 | . 57 33 52 12 87 Absorbed by Shields . | . . . . . . Core Remaining (%) 69 | 100 . . . 38 . Volleys Fired 122 | . 38 30 20 18 16 Largest 2 | . 2 2 2 2 2 Hottest 250 | . 50 85 60 250 136 Shots Fired 223 | . 74 60 39 24 26 Gun 184 | . 72 60 36 15 1 Cannon 22 | . . . . 2 20 Launcher 17 | . 2 . 3 7 5 Special . | . . . . . . Kinetic 163 | . 72 49 36 6 . Thermal 43 | . . 11 . 11 21 Explosive 17 | . 2 . 3 7 5 Electromagnetic . | . . . . . . Robot Hit Streak 12 | . 9 8 12 5 11 Robot Miss Streak 4 | . 3 3 3 1 4 Penetration Max . | . . . . . . Secondary Targets 1 | . . . 1 . . Max Gunslinging Chain 1 | . . . 1 . . Shots Hit Robots 139 | . 45 40 31 7 16 Core Hits 90 | . 20 14 21 17 18 Critical Hits 15 | . 2 . 11 . 2 Critical Kills 2 | . 1 . . . 1 Critical Parts Destroyed 2 | . 1 . . . 1 Melee Attacks . | . . . . . . Impact . | . . . . . . Slashing . | . . . . . . Piercing . | . . . . . . Sneak Attacks . | . . . . . . Combat Hostiles . | . . . . . . Follow-up Attacks . | . . . . . . Damage Inflicted 3692 | . 680 562 798 905 747 Guns 1592 | . 554 562 451 13 12 Cannons 375 | . . . . 84 291 Explosions 1725 | . 126 . 347 808 444 Melee . | . . . . . . Ramming . | . . . . . . Kinetic 1429 | . 554 424 451 . . Thermal 750 | . . 138 . 309 303 Explosive 1513 | . 126 . 347 596 444 Electromagnetic . | . . . . . . Impact . | . . . . . . Slashing . | . . . . . . Piercing . | . . . . . . Highest Corruption 2 | . . . . . 2 Average Corruption 2 | . . . . . 2 Corruption Purged . | . . . . . . Effects 3 | . . . . . 3 Message Errors 2 | . . . . . 2 Data Loss (minor) 1 | . . . . . 1 Overload Shots . | . . . . . . Overflow Damage 47 | . . . . 39 8 Projectiles . | . . . . . . Explosions 47 | . . . . 39 8 Melee . | . . . . . . Knockbacks . | . . . . . . Impact . | . . . . . . Kinetic . | . . . . . . Secondary . | . . . . . . Self-Inflicted Damage 62 | . . . . 25 37 Shots 2 | . . . . 1 1 Rammed . | . . . . . . Targets Rammed . | . . . . . . Kicked . | . . . . . . Crushed . | . . . . . . Highest Temperature 465 | . 2 186 294 465 234 Average Temperature 101 | . 2 56 136 110 106 Received Heat Transfer 459 | . 132 111 . 54 162 Effects 2 | . . . . 2 . Shutdowns 1 | . . . . 1 . Energy Bleed 1 | . . . . 1 . Siege Activations . | . . . . . . Robots Corrupted . | . . . . . . Combat Hostiles . | . . . . . . Parts Fried . | . . . . . . Impact Corruptions . | . . . . . . Robots Melted . | . . . . . . Combat Hostiles . | . . . . . . Parts Melted 7 | . . . . 7 . Heat Transferred 2285 | . . 333 . 1397 555 Parts Sabotaged . | . . . . . . Parts Stolen . | . . . . . . Parts Stripped . | . . . . . . Power Chain Reactions . | . . . . . . Missiles Intercepted . | . . . . . . Alert | -11 -10 -10 -10 -9 -8 ------- Run | Scr Mat Min Exi Min Mat Peak Influence 190 | . 154 70 . 190 179 Initial 74 | . . 46 . . 74 Average 53 | . 49 38 . 94 80 Maximum Alert Level . | . . . . . . Low Security (%) 100 | 100 100 100 . 100 100 Level 1 . | . . . . . . Level 2 . | . . . . . . Level 3 . | . . . . . . Level 4 . | . . . . . . Level 5 . | . . . . . . High Security . | . . . . . . Max Security . | . . . . . . Squads Dispatched 6 | . 1 . . . 5 Investigation 1 | . . . . . 1 Extermination . | . . . . . . Reinforcement 5 | . 1 . . . 4 Assault . | . . . . . . Garrison . | . . . . . . Intercept . | . . . . . . Construction Impeded 1 | . . . . . 1 Haulers Reinforced . | . . . . . . Stealth | -11 -10 -10 -10 -9 -8 --------- Run | Scr Mat Min Exi Min Mat Distress Signals 6 | . 4 . . . 2 Communications Jammed . | . . . . . . Distress Signals . | . . . . . . Times Spotted 65 | . 23 7 8 7 20 Peak Tracking Total 10 | . 6 3 9 3 10 Tactical Retreats 4 | . 1 2 . . 1 Traps | -11 -10 -10 -10 -9 -8 ------- Run | Scr Mat Min Exi Min Mat Traps Triggered . | . . . . . . Indirectly . | . . . . . . Trap Hack Attempts . | . . . . . . Triggered . | . . . . . . Disarmed . | . . . . . . Reprogrammed . | . . . . . . Reused . | . . . . . . Traps Extracted . | . . . . . . Installed . | . . . . . . Triggered . | . . . . . . Machines | -11 -10 -10 -10 -9 -8 ---------- Run | Scr Mat Min Exi Min Mat Machines Disabled 1 | . 1 . . . . Max in Single Turn 1 | . 1 . . . . Machines Sabotaged . | . . . . . . Garrisons Compromised . | . . . . . . Overloaded Fab Kills . | . . . . . . Fab Network Shutdowns . | . . . . . . Hacking | -11 -10 -10 -10 -9 -8 --------- Run | Scr Mat Min Exi Min Mat Machines Accessed 7 | . 2 2 1 . 2 Terminals 5 | . 2 1 . . 2 Fabricators . | . . . . . . Repair Stations . | . . . . . . Recycling Units . | . . . . . . Scanalyzers . | . . . . . . Garrison Access . | . . . . . . Total Hacks 10 | . 3 2 1 . 4 Successful 4 | . 2 1 1 . . Failed 6 | . 1 1 . . 4 Catastrophic 1 | . . . . . 1 Database Lockouts . | . . . . . . Manual 4 | . 2 1 1 . . Terminals 8 | . 3 1 . . 4 Fabricators . | . . . . . . Repair Stations . | . . . . . . Recycling Units . | . . . . . . Scanalyzers . | . . . . . . Garrison Access . | . . . . . . Terminal Hacks 4 | . 2 1 1 . . Open Door 1 | . . 1 . . . Recall Reinforcements 1 | . 1 . . . . Hauler Manifests 1 | . 1 . . . . EX-Prototype ID Bank 1 | . . . 1 . . Fabricator Hacks . | . . . . . . Repair Station Hacks . | . . . . . . Recycling Unit Hacks . | . . . . . . Scanalyzer . | . . . . . . Garrison Access Hacks . | . . . . . . Unauthorized Hacks . | . . . . . . Terminals . | . . . . . . Fabricators . | . . . . . . Repair Stations . | . . . . . . Recycling Units . | . . . . . . Scanalyzers . | . . . . . . Garrison Access . | . . . . . . Data Cores Recovered . | . . . . . . Used . | . . . . . . Hacking Detections 4 | . 1 1 . . 2 Full Trace Events 2 | . . . . . 2 Feedback Events . | . . . . . . Feedback Blocked . | . . . . . . Robot Schematics Acquired . | . . . . . . Robots Built . | . . . . . . Matter . | . . . . . . Time . | . . . . . . Total Robot Build Rating . | . . . . . . Part Schematics Acquired . | . . . . . . Parts Built . | . . . . . . Matter . | . . . . . . Time . | . . . . . . Total Part Build Rating . | . . . . . . Parts Repaired . | . . . . . . Time . | . . . . . . Parts Recycled . | . . . . . . Recycled Matter . | . . . . . . Retrieved Matter . | . . . . . . Retrieved Components . | . . . . . . Parts Scanalyzed . | . . . . . . Part Schematics Acquired . | . . . . . . Parts Damaged . | . . . . . . Bothacking | -11 -10 -10 -10 -9 -8 ------------ Run | Scr Mat Min Exi Min Mat Used RIF Installer . | . . . . . . Robots Hacked . | . . . . . . Non-combat . | . . . . . . Combat . | . . . . . . Robot Hacks Applied . | . . . . . . Relay Couplers Released . | . . . . . . Robots Rewired . | . . . . . . Allies Hacked . | . . . . . . Hacks Repelled . | . . . . . . Allies | -11 -10 -10 -10 -9 -8 -------- Run | Scr Mat Min Exi Min Mat Total Allies . | . . . . . . Largest Group . | . . . . . . Highest-Rated Group . | . . . . . . Highest-Rated Ally . | . . . . . . Total Orders 8 | . . . 8 . . ROAM 3 | . . . 3 . . RETURN 5 | . . . 5 . . Ally Attacks 36 | . . . 36 . . Total Damage 234 | . . . 234 . . Kills 1 | . . . 1 . . Allies Corrupted . | . . . . . . Allies Melted . | . . . . . . Intel | -11 -10 -10 -10 -9 -8 ------- Run | Scr Mat Min Exi Min Mat Robot Analysis Total . | . . . . . . Derelict Logs Recovered 3 | . . 2 . 1 . Drone Launches 16 | . . . 16 . . Drone Recoveries 15 | . . . 15 . . Exploration | -11 -10 -10 -10 -9 -8 ------------- Run | Scr Mat Min Exi Min Mat Turns Passed 3945 | 74 580 1500 963 391 437 Spaces Moved 2114 | 48 275 835 567 193 196 Core 7 | 7 . . . . . Treads 445 | 33 183 215 . 8 6 Legs 6 | . . . 6 . . Wheels 1656 | 8 92 620 561 185 190 Hover . | . . . . . . Flight . | . . . . . . Fastest Speed 50 | 50 90 140 100 160 140 Average Speed 158 | 130 156 165 139 164 187 Slowest Speed 260 | 160 220 220 180 220 260 Overloaded Moves . | . . . . . . Propulsion Burnouts . | . . . . . . Robots Hopped . | . . . . . . Cave-ins Triggered . | . . . . . . Exploration Rate (%) 53 | 4 57 99 76 63 19 Regions Visited 5 Branch Regions 3 Pre-discovered Areas 1 | . . . . 1 . Known Exits Taken . | . . . . . . Unknown Exits Taken 5 | 1 1 1 1 1 . Scrap Searched 3 | . . 1 . 2 . Spaces Dug 9 | . . . . 9 . Terrain Destroyed 142 | . 9 . 30 61 42 Melee . | . . . . . . Projectile 18 | . . . 18 . . AOE 124 | . 9 . 12 61 42 Terrain Rammed . | . . . . . . Walls Destroyed . | . . . . . . Machines Disabled . | . . . . . . Actions | -11 -10 -10 -10 -9 -8 --------- Run | Scr Mat Min Exi Min Mat Total 2483 | 56 349 894 705 242 237 Wait 98 | . 22 12 56 7 1 Move 2109 | 47 274 834 566 192 196 Hop . | . . . . . . Pick Up 68 | 3 8 11 24 11 11 Fast Attach 20 | 6 2 1 5 3 3 Attach 12 | . . 3 4 1 4 Detach 1 | . . . . . 1 Swap 22 | . 3 2 8 5 4 Drop 31 | . 2 1 22 5 1 Fire 122 | . 38 30 20 18 16 Melee . | . . . . . . Ram . | . . . . . . Kick . | . . . . . . Crush . | . . . . . . Escape Stasis . | . . . . . . Rewire . | . . . . . . Trap . | . . . . . . Miscellaneous . | . . . . . . Route ------- -11/Scrapyard -10/Materials (discovered 2 exits: [*Mat] / *Min) -10/Mines (discovered 3 exits: [*Mat x2] / *Exi) -10/Exiles -9/Mines -8/Materials History --------- Turn | Location | Event 4 | -11/Scrapyard | Discovered new exit (range 15) 75 | -11/Scrapyard | Entered Materials 133 | -10/Materials | Discovered new exit (range 9) 300 | -10/Materials | Build established: Mutant 318 | -10/Materials | Discovered new exit (range 5) 655 | -10/Materials | Entered Mines 663 | -10/Mines | Build established: Hauler-Mutant 687 | -10/Mines | Found a hidden stash of uninstalled traps 759 | -10/Mines | Learned Materials stockpile data 763 | -10/Mines | Deemed a non-threat by the Exiles lab entrance 765 | -10/Mines | Discovered new exit (range 5) 1330 | -10/Mines | A weapon hastily lodged in a ceiling crevice suddenly fell to the ground 1340 | -10/Mines | Discovered new exit (range 8) 1367 | -10/Mines | Found the Drone Emporium 1377 | -10/Mines | Found Prototype Device 1378 | -10/Mines | Identified Thief Drone Bay 1449 | -10/Mines | Learned Materials security intel 1916 | -10/Mines | Discovered new exit (range 7) 2155 | -10/Mines | Entered Exiles 2193 | -10/Exiles | Met 8R-AWN 2213 | -10/Exiles | Met EX-HEX 2260 | -10/Exiles | Met EX-BIN 2333 | -10/Exiles | Aligned with FarCom system 2335 | -10/Exiles | Given EX-Vault access code 2368 | -10/Exiles | Opened EX-Vault 2381 | -10/Exiles | Found Modified TNC 2385 | -10/Exiles | Found Firepult 2418 | -10/Exiles | Warned to stay clear of 0b10 Research branches 2570 | -10/Exiles | Discovered new exit (range 15) 2874 | -10/Exiles | Attacked by the Exiles 2890 | -10/Exiles | Core integrity fell below 50% 2897 | -10/Exiles | Found Prototype Ballistic Gun 2898 | -10/Exiles | Identified 8R-AWN's Boregun 2926 | -10/Exiles | Lost 3 parts (1p1n1w) 2926 | -10/Exiles | Found Prototype Device 2926 | -10/Exiles | Identified AS-neutralizer No. 17b 2971 | -10/Exiles | Found 8R-AWN's Boregun 3012 | -10/Exiles | Destroyed 8R-AWN 3026 | -10/Exiles | Found Prototype Protection 3026 | -10/Exiles | Identified 8R-AWN's Armor/EX 3118 | -10/Exiles | Stole two prototypes: Modified TNC, Firepult 3118 | -10/Exiles | Entered Mines 3304 | -9/Mines | Learned location of Zion (-6) 3308 | -9/Mines | Received a Rocket Launcher from a helpful Derelict 3374 | -9/Mines | Excavation squad dispatched 3374 | -9/Mines | A large section of the Mines collapsed 3502 | -9/Mines | Discovered new exit (range 5) 3509 | -9/Mines | Entered Materials 3509 | -8/Materials | Evolved 4 slots: Propulsion x1, Utility x3 3946 | -8/Materials | Self-destructed Last Messages --------------- 03924_ Adv. Beam Cannon destroyed. 03925_ R-06 Scavenger collects Particle Gun. 03927_ G-47 Trooper destroyed. 03929_ Acquired 22 matter. 03929_ Wheel destroyed. 03932_ Imp. Heat Sink destroyed. 03933_ G-47 Trooper destroyed. 03933_ Y-45 Defender destroyed. 03935_ The unstable cave ceiling collapses. 03937_ U-05 Engineer lays Concrete. 03938_ Acquired 4 matter. 03938_ U-05 Engineer builds a Wall. 03938_ U-05 Engineer lays Concrete. 03941_ U-05 Engineer builds a Wall. 03942_ U-05 Engineer lays Concrete. 03943_ U-05 Engineer builds a Wall. 03943_ Acquired 10 matter. 03944_ U-05 Engineer lays Concrete. 03945_ U-05 Engineer builds a Wall. 03946_ U-05 Engineer lays Concrete. Map ----- +----------------------------------------------------+ | ##T##########????????????????????? | | ????????????????????? | | ????????????????????? | | """"" [ ????????????????????? | | ########### ""T"" #######?????????????????????? | | #????????# #???????????????????????????? | | #????????# #???????????????????????????? | | #????????# #???????????????????????????? | | #????##### #???????????????????????????? | | #??# #???????????????????????????? | | #??# #???????????????????????????? | | ##??# """ """ T #???????????????????????????? | | ????# """ """ #???????????????????????????? | | ????# """ """^ #???????????????????????????? | | ????# #???????????????????????????? | | ????+ ! #???????????????????????????? | | ????# ! ########????????????????????? | | ????# #????????????????????? | | ????# ! #????????????????????? | | ???? ! %* #????????????????????? | | ???? ################=* ##???????????????????? | | ????? ???????????????##u #???????????????????? | | ???????????????##########[ #???????????????????? | | ???????????????# = #???????????????????? | | ???????????????# """"" *[[ #???????????????????? | | ???????????????# """"" =@* #???????????????????? | | ??????????????????""""" % #???????????????????? | | ????????????????? /s #???????????????????? | | ???????????????#[ # #???????????????????? | | ???????????????# "T" #??????????????????? | | ???????????????# """ # #?????????????????? | | ???????????????# #?????????????????? | | ???????????????######## % #?????????????????? | | !?????????????????????#?# ##?????????????????? | | ???????????????????????? #??????????????????? | | ??????????????????????? gg #??????????????????? | | ??????????????????????? u g# #??????????????????? | | ??????????????????????? # u###??????????????????? | | ???????????????????????#? ????????????????????? | | ????????????????????????? ????????????????????? | | ????????????????????????? o ?????????????????????? | | ?????????????????????????????????????????????????? | | ?????????????????????????????????????????????????? | | ?????????????????????????????????????????????????? | | ?????????????????????????????????????????????????? | | ?????????????????????????????????????????????????? | | ?????????????????????????????????????????????????? | | ?????????????????????????????????????????????????? | | ?????????????????????????????????????????????????? | | ?????????????????????????????????????????????????? | +----------------------------------------------------+ Best States ------------- Heat Dissipation 57 Energy Generation 19 Energy Capacity 310 Matter Stores 300 Matter Capacity 300 Sight Range 16 Terrain Scan Density 10 Armor Coverage 225 Evasion (%) 42 Recoil Reduction 1 Item Schematics ----------------- None Robot Schematics ------------------ None Fabricated ------------ Nothing Alien Tech Used ----------------- None Achievements -------------- None Challenges ------------ None Game ------ Seed CannonReactionGravjet Manual? 0 Play Time 00:37:42 Cumulative 389.4 hours Start 2020.09.17 @ 21:39:57 End 2020.09.18 @ 16:05:36 Sessions 3 Manual Loads 0 Difficulty Rogue Special Mode None Game No. 287 Rogue 287 Adventurer 0 Explorer 0 Win Type - Total 12 Types 11/0/0/1/0/0/0/0/0 Lore% 75 Gallery% 77 Achievement% 64 Wizard Run 0 Options --------- ASCII 0 Keyboard 0 Movement Vi Keybinds 0 Fullscreen 0 Font 16/SmallcapsGlow Map View 76x50 Tactical HUD 1 Map Filters NONE Filters NONE Steam 1 RUN: 69c40598-1e18-4273-9b4c-dda20c15dd31